bitfinex/quotes_SOLUSD_20251224
["timestamp","ask_amount","ask_price","bid_price","bid_amount"]
[1766590882465,14.92,122.5,122.46,5.30288194]
[1766590882974,14.92,122.5,122.48,5.30288194]
[1766590883173,23.0821914,122.52,122.48,4.64288194]
[1766590883362,23.7421914,122.52,122.48,4.64288194]
[1766590883766,28.38507334,122.52,122.47,5.30288194]
[1766590884261,28.38507334,122.52,122.48,4.64288194]
[1766590884467,8.26135925,122.53,122.48,4.64288194]
[1766590884665,8.26135925,122.53,122.5,0.66]
[1766590885877,13.56424119,122.53,122.48,5.30288194]
[1766590886076,14.92,122.52,122.48,5.30288194]
[1766590886976,23.08227336,122.52,122.48,0.66]
[1766590887151,23.08227336,122.52,122.48,5.30288194]
[1766590887351,27.7251553,122.52,122.48,0.66]
[1766590887957,23.08227336,122.52,122.48,5.30288194]
[1766590888255,0.1,122.53,122.5,5.30288194]
[1766590888470,0.1,122.53,122.51,0.66]
[1766590889580,0.1,122.53,122.47,10.43767296]
[1766590889581,8.26127202,122.53,122.49,5.30288194]
[1766590891062,8.26127202,122.53,122.49,0.66]
[1766590891387,8.26127202,122.53,122.49,5.30288194]
[1766590891886,8.26127202,122.53,122.5,4.64288194]
[1766590892197,0.1,122.53,122.51,0.66]
[1766590893261,0.1,122.53,122.49,8.17320898]
[1766590894161,0.1,122.53,122.49,7.51320898]
[1766590894362,0.1,122.53,122.5,0.66]
[1766590894590,0.1,122.53,122.5,7.51320898]
[1766590894760,0.1,122.53,122.51,0.66]
[1766590895354,15.77458266,122.53,122.49,0.66]
[1766590895586,0.66,122.51,122.47,63.56]
[1766590895776,7.51320898,122.51,122.46,7.51320898]
[1766590895976,23.07320898,122.5,122.45,8.17320898]
[1766590896178,7.51320898,122.49,122.45,0.66]
[1766590896578,23.13320898,122.48,122.43,0.66]
[1766590896779,23.13320898,122.48,122.43,8.17320898]
[1766590897162,23.13320898,122.48,122.44,0.71]
[1766590897370,22.41320898,122.48,122.44,0.71]
[1766590897570,30.57841975,122.48,122.45,0.71]
[1766590897880,30.57841975,122.48,122.44,8.22320898]
[1766590898392,30.57841975,122.48,122.44,0.71]
[1766590899086,7.51320898,122.47,122.43,0.71]
[1766590899467,8.22320898,122.47,122.43,0.71]
[1766590899684,23.06593173,122.46,122.43,0.71]
[1766590899989,31.28914071,122.46,122.41,8.22320898]
[1766590900198,7.51320898,122.45,122.41,0.71]
[1766590901071,44.19076106,122.46,122.41,0.71]
[1766590901292,7.51320898,122.45,122.41,0.71]
[1766590901587,30.57914071,122.46,122.42,0.71]
[1766590904791,8.22320898,122.45,122.4,15.68289476]
[1766590904977,0.71,122.45,122.4,16.39289476]
[1766590905177,16.3900602,122.45,122.41,0.71]
[1766590905800,8.16685122,122.45,122.42,0.71]
[1766590907196,23.06616994,122.46,122.43,8.22320898]
[1766590907383,23.06616994,122.46,122.43,0.71]
[1766590908986,7.51320898,122.45,122.41,0.71]
[1766590909194,23.77616994,122.46,122.42,0.71]
[1766590909195,31.28937892,122.46,122.42,0.71]
[1766590909496,51.70420825,122.46,122.42,0.71]
[1766590909686,44.19099927,122.46,122.42,0.71]
[1766590909883,43.48099927,122.46,122.42,0.71]
[1766590910090,23.06616994,122.46,122.42,8.22320898]
[1766590910495,30.57937892,122.46,122.42,0.71]
[1766590911699,23.06616994,122.46,122.43,0.71]
[1766590913221,50.99420825,122.46,122.42,7.51320898]
[1766590913516,50.99420825,122.46,122.39,7.51320898]
[1766590913517,0.71,122.43,122.39,7.51320898]
[1766590913829,0.71,122.43,122.39,8.22320898]
[1766590914006,22.43320898,122.44,122.39,8.22320898]
[1766590914331,22.43320898,122.44,122.4,0.71]
[1766590914799,14.92,122.44,122.41,0.71]
[1766590915126,23.08763533,122.44,122.41,0.71]
[1766590915990,27.93014271,122.45,122.41,0.71]
[1766590915991,11.0030279,122.45,122.41,0.71]
[1766590916197,8.16661178,122.45,122.42,0.71]
[1766590916503,116.8,122.46,122.42,2.83641612]
[1766590916719,101.88,122.46,122.44,0.71]
[1766590916909,18.60298063,122.47,122.44,0.71]
[1766590919023,22.14939675,122.47,122.42,11.71452933]
[1766590919324,2.83641612,122.46,122.42,0.71]
[1766590919618,2.83641612,122.44,122.4,11.14767296]
[1766590919925,2.83641612,122.44,122.4,0.71]
[1766590920225,18.46641612,122.45,122.4,11.71632794]
[1766590920515,18.46641612,122.45,122.4,3.54641612]
[1766590920721,2.83641612,122.44,122.4,0.71]
[1766590920935,8.16726559,122.44,122.4,0.71]
[1766590921131,11.00368171,122.44,122.4,0.71]
[1766590921729,11.00368171,122.44,122.38,20.42773002]
[1766590921730,15.63,122.43,122.38,3.54641612]
[1766590921942,23.15753314,122.43,122.38,8.23753314]
[1766590922816,14.92,122.43,122.4,0.71]
[1766590923023,23.08817244,122.43,122.4,0.71]
[1766590924254,43.50800418,122.43,122.37,10.43767296]
[1766590924423,43.50800418,122.43,122.39,8.23753314]
[1766590925524,44.21800418,122.43,122.39,8.23753314]
[1766590926338,14.92,122.43,122.4,7.52753314]
[1766590926550,23.08801774,122.43,122.4,8.23753314]
[1766590926748,23.08801774,122.43,122.4,0.71]
[1766590928153,0.69,122.42,122.37,19.31928773]
[1766590928360,8.16716285,122.45,122.4,7.52753314]
[1766590928560,313.6,122.5,122.38,28.5994219]
[1766590928561,164.7,122.51,122.44,7.52753314]
[1766590928765,23.13753314,122.5,122.45,8.23753314]
[1766590929077,8.21753314,122.49,122.45,0.71]
[1766590929572,14.92,122.48,122.45,0.71]
[1766590929869,8.16526496,122.47,122.45,0.71]
[1766590930246,23.0849014,122.48,122.45,0.71]
[1766590930448,14.92,122.48,122.45,8.23753314]
[1766590930664,18.60122281,122.5,122.45,15.69403248]
[1766590930848,18.60122281,122.5,122.4,59.63033086]
[1766590930849,46.53691921,122.5,122.46,0.71]
[1766590931051,47.22691921,122.5,122.46,0.71]
[1766590931654,14.92,122.49,122.46,0.71]
[1766590932255,23.08452569,122.49,122.46,0.71]
[1766590932457,30.61205883,122.49,122.46,0.71]
[1766590933578,51.7118882,122.49,122.44,8.23753314]
[1766590933765,51.0218882,122.49,122.45,0.71]
[1766590934166,33.52120354,122.5,122.47,7.52753314]
[1766590934368,33.52120354,122.5,122.47,0.71]
[1766590934686,33.52120354,122.5,122.48,8.23753314]
[1766590934687,14.92,122.5,122.48,8.23753314]
[1766590934886,14.92,122.5,122.48,0.71]
[1766590936760,16.37972503,122.52,122.48,0.71]
[1766590936960,31.29972503,122.52,122.48,0.71]
[1766590937161,8.21753314,122.51,122.46,0.71]
[1766590937378,0.69,122.49,122.45,7.52753314]
[1766590937787,0.69,122.49,122.45,8.23753314]
[1766590938265,0.69,122.49,122.45,16.4041157]
[1766590938467,0.69,122.49,122.45,8.23753314]
[1766590939194,22.44753314,122.5,122.44,7.52753314]
[1766590939195,8.1645983,122.48,122.44,7.52753314]
[1766590939396,8.1645983,122.48,122.43,8.23753314]
[1766590939397,8.8545983,122.48,122.43,8.23753314]
[1766590939565,31.30213144,122.48,122.43,0.71]
[1766590939762,31.30213144,122.48,122.42,8.23753314]
[1766590939763,8.21753314,122.47,122.42,8.23753314]
[1766590939962,0.69,122.44,122.4,8.23753314]
[1766590940196,7.52753314,122.45,122.41,0.71]
[1766590940393,23.13753314,122.46,122.41,8.23753314]
[1766590940698,14.92,122.46,122.42,8.23753314]
[1766590940882,22.44753314,122.46,122.42,0.71]
[1766590941203,23.08647065,122.46,122.42,8.23753314]
[1766590941569,23.08647065,122.46,122.43,0.71]
[1766590942995,14.92,122.46,122.43,0.71]
[1766590943200,40.81487125,122.51,122.44,2.83520563]
[1766590943201,8.1645983,122.48,122.44,2.83520563]
[1766590943371,11.68980393,122.48,122.43,0.71]
[1766590943571,11.68980393,122.48,122.44,0.71]
[1766590944277,32.10129968,122.48,122.42,8.16854848]
[1766590944488,32.10129968,122.48,122.43,3.54520563]
[1766590944973,29.26609405,122.48,122.43,3.54520563]
[1766590945183,32.10129968,122.48,122.43,3.54520563]
[1766590947203,2.83520563,122.47,122.43,0.71]
[1766590948584,23.93670138,122.48,122.44,0.71]
[1766590949379,8.16555142,122.47,122.44,0.71]
[1766590951502,25.35767296,122.49,122.44,2.83520563]
[1766590951801,21.09563002,122.52,122.46,2.83520563]
[1766590951979,8.16259897,122.51,122.48,0.71]
[1766590952468,10.66530935,122.52,122.48,0.71]
[1766590952673,23.18128065,122.53,122.49,2.52303602]
[1766590952901,23.18128065,122.53,122.5,0.71]
[1766590953483,24.99431667,122.53,122.5,0.71]
[1766590953687,24.99431667,122.53,122.48,1.81303602]
[1766590953688,2.50303602,122.52,122.47,0.71]
[1766590953903,2.50303602,122.52,122.47,2.52303602]
[1766590954107,5.31535329,122.52,122.48,0.71]
[1766590955400,8.16259897,122.51,122.48,0.71]
[1766590957193,5.31535329,122.5,122.45,5.29535329]
[1766590957394,5.31535329,122.5,122.45,0.67]
[1766590957395,8.16393174,122.49,122.45,0.67]
[1766590957793,8.16393174,122.49,122.45,5.29535329]
[1766590957993,8.16393174,122.49,122.46,0.67]
[1766590958401,8.16356035,122.5,122.46,4.62535329]
[1766590958600,8.16356035,122.5,122.47,0.67]
[1766590959710,23.08284877,122.51,122.48,0.67]
[1766590960779,43.48934619,122.51,122.48,0.67]
[1766590962606,48.80469948,122.51,122.46,5.29535329]
[1766590962780,5.31535329,122.5,122.46,0.67]
[1766590962986,0.69,122.49,122.44,15.73302625]
[1766590963195,4.62535329,122.48,122.43,12.79292648]
[1766590963501,11.12767296,122.48,122.44,0.67]
[1766590963700,10.43767296,122.48,122.44,0.67]
[1766590963917,18.60246782,122.48,122.44,0.67]
[1766590964324,18.60246782,122.48,122.44,5.29535329]
[1766590964504,18.60246782,122.48,122.44,0.67]
[1766590964701,14.92,122.51,122.47,4.62535329]
[1766590964901,0.1,122.53,122.5,0.67]
[1766590965131,0.1,122.53,122.5,5.29535329]
[1766590965497,8.2612963,122.53,122.51,4.62535329]
[1766590965699,8.2612963,122.53,122.5,5.29535329]
[1766590966430,8.2612963,122.53,122.5,0.67]
[1766590968711,8.2612963,122.53,122.5,4.62535329]
[1766590968911,8.2612963,122.53,122.51,0.67]
[1766590969424,0.69,122.52,122.47,8.16500305]
[1766590969630,0.69,122.52,122.48,4.62535329]
[1766590970305,8.8523647,122.52,122.48,4.62535329]
[1766590970505,8.8523647,122.52,122.47,8.16512745]
[1766590970828,0.69,122.51,122.47,4.62535329]
[1766590971323,13.47771799,122.52,122.47,4.62535329]
[1766590971502,33.88254985,122.52,122.47,0.67]
[1766590971705,0.69,122.51,122.47,5.29535329]
[1766590972211,8.1632653,122.5,122.47,5.29535329]
[1766590972602,8.8532653,122.5,122.47,0.67]
[1766590975329,13.47827677,122.51,122.47,0.67]
[1766590976028,8.85292348,122.51,122.47,2.48324008]
[1766590977304,1.81324008,122.5,122.45,0.67]
[1766590977625,0.69,122.5,122.46,2.48324008]
[1766590978928,1.81324008,122.48,122.44,0.67]
[1766590979110,0.69,122.47,122.44,0.67]
[1766590980826,8.16488763,122.48,122.44,1.81324008]
[1766590980999,8.85395955,122.49,122.45,2.48324008]
[1766590981908,9.97675261,122.5,122.45,9.97977554]
[1766590982109,8.16351253,122.5,122.47,2.48324008]
[1766590983126,8.85351253,122.5,122.47,0.67]
[1766590983812,9.97675261,122.5,122.43,10.43767296]
[1766590984139,0.69,122.46,122.42,0.67]
[1766590984438,0.69,122.46,122.42,2.48324008]
[1766590985013,8.8561649,122.46,122.42,2.48324008]
[1766590986047,8.8561649,122.46,122.42,0.67]
[1766590986350,8.8561649,122.46,122.37,41.67467851]
[1766590986351,0.69,122.42,122.37,8.84174844]
[1766590986517,0.69,122.42,122.38,10.65442591]
[1766590986722,11.12767296,122.43,122.39,0.67]
[1766590986918,11.12767296,122.43,122.39,2.48324008]
[1766590987239,19.29582343,122.43,122.39,2.48324008]
[1766590987550,10.43767296,122.43,122.4,2.47324008]
[1766590987750,18.60563039,122.43,122.4,0.66]
[1766590988251,8.87757387,122.44,122.4,2.47324008]
[1766590988737,0.71,122.44,122.4,1.81324008]
[1766590988941,35.31777686,122.45,122.39,8.17059655]
[1766590988942,18.60453678,122.45,122.42,0.66]
[1766590989161,0.71,122.46,122.43,1.81324008]
[1766590989314,0.71,122.46,122.43,2.47324008]
[1766590989315,8.16593686,122.46,122.43,2.47324008]
[1766590989512,0.71,122.49,122.45,2.47324008]
[1766590989938,8.1632653,122.5,122.46,0.66]
[1766590990147,8.8732653,122.5,122.46,5.28642038]
[1766590990342,19.31093826,122.5,122.46,5.28642038]
[1766590990718,23.93735864,122.5,122.46,0.66]
[1766590990921,23.93735864,122.5,122.42,29.4068878]
[1766590990922,0.71,122.48,122.44,5.28642038]
[1766590991242,0.71,122.46,122.41,8.16901175]
[1766590991557,0.71,122.46,122.42,4.62642038]
[1766590991875,0.71,122.46,122.42,0.66]
[1766590993560,8.87645143,122.46,122.42,0.66]
[1766590994441,13.50287181,122.46,122.42,0.66]
[1766590994847,0.71,122.45,122.41,4.62642038]
[1766590995246,28.58128076,122.46,122.42,4.62642038]
[1766590995562,8.87645143,122.46,122.42,5.28642038]
[1766590996664,18.6032071,122.47,122.43,0.66]
[1766590996864,18.6032071,122.47,122.43,5.28642038]
[1766590998073,23.93962748,122.47,122.43,0.66]
[1766591001664,19.3132071,122.47,122.43,0.66]
[1766591002468,18.3132071,122.47,122.43,0.66]
[1766591003173,4.62642038,122.46,122.41,5.28642038]
[1766591003374,0.71,122.45,122.41,5.28642038]
[1766591004278,0.71,122.45,122.41,0.66]
[1766591004776,8.16726559,122.44,122.41,0.66]
[1766591005870,8.87690109,122.45,122.41,0.66]
[1766591007283,8.16690109,122.45,122.41,5.28642038]
[1766591007579,8.87690109,122.45,122.42,0.66]
[1766591008975,8.16690109,122.45,122.42,0.66]
[1766591009180,25.7490679,122.48,122.44,0.66]
[1766591009389,8.16565707,122.47,122.44,5.28642038]
[1766591010082,8.16565707,122.47,122.44,0.66]
[1766591010459,8.87565707,122.47,122.44,0.66]
[1766591010664,28.57724582,122.48,122.44,0.66]
[1766591011479,29.28724582,122.48,122.44,0.66]
[1766591011875,0.71,122.5,122.46,2.47413197]
[1766591012081,10.43767296,122.49,122.46,3.49337189]
[1766591012485,8.87358469,122.5,122.47,2.83337189]
[1766591012686,8.16281493,122.51,122.48,0.66]
[1766591013386,8.87281493,122.51,122.47,3.49337189]
[1766591015297,8.87281493,122.51,122.47,0.66]
[1766591015468,0.71,122.49,122.44,26.58028312]
[1766591015662,2.83337189,122.49,122.44,26.58028312]
[1766591015868,2.83337189,122.48,122.44,14.92]
[1766591016092,17.75337189,122.49,122.44,15.58]
[1766591016265,18.46337189,122.49,122.44,15.58]
[1766591016575,0.66,122.48,122.44,15.58]
[1766591017365,0.66,122.48,122.44,26.58055159]
[1766591017574,126.64282635,122.53,122.47,2.83337189]
[1766591017781,0.66,122.51,122.47,3.55337189]
[1766591019003,0.66,122.51,122.48,0.72]
[1766591019185,8.82246403,122.52,122.48,0.72]
[1766591019878,8.82246403,122.52,122.48,3.55337189]
[1766591020489,8.82246403,122.52,122.48,0.72]
[1766591020700,18.69915651,122.53,122.49,3.55337189]
[1766591020911,0.1,122.53,122.51,0.72]
[1766591021707,11.75478996,122.53,122.49,0.72]
[1766591022796,0.76,122.53,122.49,11.71723921]
[1766591022996,0.1,122.53,122.5,0.72]
[1766591023175,8.26129538,122.53,122.5,0.72]
[1766591023890,0.1,122.53,122.5,0.72]
[1766591026417,0.1,122.53,122.5,11.71661823]
[1766591026617,0.1,122.53,122.51,2.83337189]
[1766591026826,0.76,122.53,122.49,0.72]
[1766591026991,0.76,122.53,122.49,3.55337189]
[1766591027306,0.1,122.53,122.5,3.55337189]
[1766591027899,0.1,122.53,122.5,11.71658753]
[1766591028214,0.1,122.53,122.5,3.55337189]
[1766591028813,0.1,122.53,122.5,10.99651966]
[1766591029016,0.1,122.53,122.51,0.72]
[1766591029819,0.1,122.53,122.5,10.99651966]
[1766591029820,0.1,122.53,122.52,3.55337189]
[1766591030315,0.1,122.53,122.52,0.72]
[1766591030494,0.1,122.53,122.52,3.55337189]
[1766591030805,4.88316658,122.54,122.52,3.55337189]
[1766591031010,4.88316658,122.54,122.53,2.83337189]
[1766591031409,4.88316658,122.54,122.52,3.55337189]
[1766591033834,0.1,122.55,122.51,20.40531892]
[1766591034005,0.1,122.55,122.5,14.9]
[1766591034006,0.1,122.57,122.54,2.83337189]
[1766591034431,0.66,122.56,122.52,2.83337189]
[1766591034605,0.66,122.56,122.53,2.83337189]
[1766591035117,8.25881782,122.57,122.53,2.83337189]
[1766591035297,0.76,122.57,122.53,2.83337189]
[1766591035506,0.76,122.57,122.54,2.83337189]
[1766591037334,8.91865622,122.57,122.53,2.83337189]
[1766591037832,8.91865622,122.57,122.52,8.16162849]
[1766591038032,8.91865622,122.57,122.53,2.83337189]
[1766591038633,0.76,122.57,122.54,2.83337189]
[1766591039129,0.66,122.56,122.53,2.83337189]
[1766591039333,8.81932651,122.56,122.53,2.83337189]
[1766591039639,0.66,122.56,122.53,2.83337189]
[1766591040237,8.81931887,122.56,122.52,2.83337189]
[1766591040438,0.66,122.55,122.51,80.63337189]
[1766591040639,0.66,122.55,122.51,17.73337189]
[1766591041133,0.66,122.55,122.51,2.83337189]
[1766591041528,0.66,122.54,122.51,2.83337189]
[1766591041847,8.16019705,122.55,122.51,2.83337189]
[1766591042134,0.66,122.56,122.53,2.83337189]
[1766591042341,0.66,122.56,122.49,44.28991391]
[1766591042342,0.66,122.56,122.52,2.83337189]
[1766591042536,0.66,122.55,122.51,2.83337189]
[1766591042746,0.66,122.56,122.53,2.83337189]
[1766591042917,19.3564053,122.57,122.53,2.83337189]
[1766591043114,0.1,122.57,122.55,2.83337189]
[1766591045147,0.76,122.57,122.54,2.83337189]
[1766591045528,0.66,122.56,122.53,14.9]
[1766591045844,0.66,122.56,122.51,2.83337189]
[1766591046051,0.66,122.55,122.51,2.83337189]
[1766591046227,8.25888069,122.57,122.49,25.33767296]
[1766591046428,0.66,122.6,122.56,13.27104485]
[1766591046622,28.53415946,122.66,122.59,2.83337189]
[1766591046823,28.53415946,122.66,122.56,11.25359985]
[1766591046824,0.66,122.63,122.56,11.25359985]
[1766591047320,0.66,122.66,122.62,2.83337189]
[1766591047520,3.59337189,122.7,122.65,2.83337189]
[1766591047855,0.66,122.69,122.62,14.9]
[1766591048152,0.66,122.69,122.65,2.83337189]
[1766591048358,0.66,122.69,122.66,2.83337189]
[1766591048734,0.66,122.69,122.65,2.83337189]
[1766591048958,0.66,122.68,122.62,14.9]
[1766591049148,0.66,122.68,122.63,2.83337189]
[1766591049467,8.15261699,122.66,122.63,2.83337189]
[1766591049651,8.15261699,122.66,122.61,23.05591534]
[1766591049652,8.15261699,122.66,122.62,2.83337189]
[1766591049847,0.66,122.65,122.61,17.73337189]
[1766591050043,0.66,122.65,122.59,10.43767296]
[1766591050260,0.66,122.65,122.6,2.83337189]
[1766591050635,2.83337189,122.65,122.6,2.83337189]
[1766591050932,0.66,122.64,122.59,2.83337189]
[1766591051253,0.66,122.64,122.6,2.83337189]
[1766591051455,0.66,122.66,122.62,2.83337189]
[1766591052055,0.66,122.69,122.65,2.83337189]
[1766591052359,0.66,122.69,122.66,2.83337189]
[1766591052857,11.19767296,122.7,122.66,2.83337189]
[1766591053261,8.91002164,122.7,122.66,2.83337189]
[1766591053957,8.91002164,122.7,122.65,7.49347962]
[1766591054154,7.49347962,122.69,122.61,11.25326712]
[1766591054456,0.66,122.68,122.63,15.64805025]
[1766591055845,0.66,122.68,122.63,7.49347962]
[1766591055846,0.66,122.67,122.63,7.49347962]
[1766591056274,0.66,122.67,122.62,7.49347962]
[1766591057258,0.66,122.66,122.61,22.39347962]
[1766591057460,0.66,122.65,122.61,14.9]
[1766591057953,0.66,122.64,122.58,8.15771789]
[1766591058154,7.49347962,122.64,122.59,7.49347962]
[1766591058368,0.66,122.63,122.59,7.49347962]
[1766591059548,0.66,122.63,122.6,7.49347962]
[1766591059857,0.66,122.65,122.61,7.49347962]
[1766591060542,0.66,122.65,122.6,7.49347962]
[1766591060745,8.81352503,122.65,122.6,7.49347962]
[1766591060958,0.66,122.64,122.6,8.1565152]
[1766591061171,0.66,122.66,122.61,7.49347962]
[1766591061749,0.66,122.66,122.6,8.1565152]
[1766591061969,0.66,122.66,122.61,7.49347962]
[1766591062374,0.66,122.65,122.61,15.64926294]
[1766591063277,8.15225504,122.67,122.62,7.49347962]
[1766591063490,16.30573466,122.67,122.62,15.64875148]
[1766591063656,0.66,122.66,122.62,15.64875148]
[1766591064062,0.66,122.66,122.62,7.49347962]
[1766591064490,0.66,122.66,122.61,22.39347962]
[1766591064975,8.15347962,122.66,122.61,14.9]
[1766591065182,0.66,122.65,122.61,14.9]
[1766591065509,0.66,122.64,122.6,7.49347962]
[1766591065659,8.15347962,122.64,122.59,14.9]
[1766591065860,0.66,122.63,122.59,14.9]
[1766591066080,0.66,122.62,122.59,14.9]
[1766591066872,0.66,122.62,122.58,15.65136745]
[1766591067765,8.81538068,122.62,122.58,7.49347962]
[1766591068492,15.6488603,122.62,122.56,15.652435]
[1766591068787,0.66,122.61,122.56,15.652435]
[1766591069999,0.66,122.61,122.57,7.49347962]
[1766591070166,0.66,122.62,122.58,7.49347962]
[1766591071393,0.66,122.62,122.57,7.49347962]
[1766591072192,8.15536693,122.62,122.57,15.65180137]
[1766591072376,0.66,122.61,122.57,15.65180137]
[1766591072676,0.66,122.61,122.57,8.15832175]
[1766591072877,0.66,122.61,122.57,15.65180137]
[1766591073478,0.66,122.61,122.56,28.55744124]
[1766591073678,0.66,122.61,122.57,7.49347962]
[1766591073890,0.66,122.61,122.58,7.49347962]
[1766591074204,0.66,122.61,122.58,4.61692454]
[1766591075379,0.66,122.62,122.58,12.77460923]
[1766591075774,0.66,122.62,122.58,8.15768469]
[1766591075974,25.00227517,122.64,122.6,1.80916111]
[1766591075975,0.66,122.64,122.6,1.80916111]
[1766591076175,0.66,122.64,122.61,1.80916111]
[1766591076394,0.66,122.64,122.6,1.80916111]
[1766591077285,0.66,122.64,122.6,9.96572342]
[1766591077483,8.83289798,122.66,122.61,1.80916111]
[1766591077792,0.68,122.65,122.61,1.80916111]
[1766591078702,0.68,122.65,122.6,28.54807943]
[1766591078703,0.68,122.65,122.62,1.80916111]
[1766591079005,0.68,122.65,122.6,20.39151712]
[1766591079299,0.68,122.65,122.61,1.80916111]
[1766591079496,0.68,122.68,122.64,1.80916111]
[1766591079707,0.68,122.68,122.65,1.80916111]
[1766591081000,8.93027888,122.7,122.65,1.80916111]
[1766591081302,0.68,122.69,122.65,9.96208841]
[1766591083376,0.68,122.69,122.65,8.1529273]
[1766591083572,0.68,122.69,122.65,1.80916111]
[1766591084408,0.68,122.69,122.64,1.80916111]
[1766591085305,0.68,122.66,122.62,8.15512353]
[1766591085492,0.68,122.66,122.62,9.96428464]
[1766591085690,0.68,122.67,122.62,9.96428464]
[1766591085889,0.68,122.67,122.63,1.80916111]
[1766591087384,0.68,122.67,122.63,9.96326479]
[1766591087800,0.68,122.67,122.64,1.80916111]
[1766591088380,0.68,122.67,122.63,30.34979337]
[1766591089407,25.52011179,122.69,122.64,1.80916111]
[1766591089579,0.68,122.68,122.64,9.96285992]
[1766591090006,0.68,122.68,122.64,8.15369881]
[1766591090717,0.68,122.67,122.63,1.80916111]
[1766591091919,0.68,122.67,122.63,8.15451135]
[1766591092111,8.15220663,122.67,122.62,8.15510171]
[1766591092295,0.68,122.66,122.63,1.80916111]
[1766591092990,0.68,122.65,122.61,1.80916111]
[1766591093188,0.68,122.65,122.6,24.84536554]
[1766591093619,0.68,122.65,122.62,1.80916111]
[1766591094419,0.68,122.65,122.62,9.96416137]
[1766591094595,0.68,122.65,122.61,8.15583164]
[1766591094796,0.68,122.65,122.61,9.96507101]
[1766591095406,0.68,122.64,122.6,24.84564244]
[1766591095605,0.68,122.64,122.61,1.80916111]
[1766591096221,8.15399098,122.64,122.6,24.84564244]
[1766591096390,0.68,122.63,122.59,1.80916111]
[1766591096591,0.68,122.63,122.58,8.15774632]
[1766591096592,0.68,122.63,122.58,24.84690743]
[1766591097109,0.68,122.63,122.55,20.39969126]
[1766591097310,0.68,122.61,122.56,9.96806539]
[1766591098407,0.68,122.6,122.57,1.80916111]
[1766591098613,0.68,122.6,122.58,1.80916111]
[1766591098823,0.68,122.6,122.57,1.80916111]
[1766591099027,8.83559643,122.62,122.58,1.80916111]
[1766591099199,0.68,122.61,122.58,1.80916111]
[1766591099702,147.58253923,122.64,122.6,1.80916111]
[1766591099703,121.15164166,122.64,122.6,1.80916111]
[1766591099894,0.68,122.63,122.6,1.80916111]
[1766591100308,0.68,122.62,122.57,62.9]
[1766591100512,0.68,122.62,122.59,1.80916111]
[1766591101107,0.68,122.61,122.57,1.80916111]
[1766591101420,0.68,122.61,122.58,1.80916111]
[1766591102733,8.15546188,122.62,122.59,1.80916111]
[1766591102934,0.68,122.65,122.61,1.80916111]
[1766591103141,0.68,122.68,122.64,1.80916111]
[1766591103338,1.80916111,122.67,122.62,14.9]
[1766591103516,0.68,122.65,122.62,1.80916111]
[1766591104019,0.68,122.65,122.6,14.9]
[1766591104325,0.68,122.64,122.6,1.80916111]
[1766591104727,0.68,122.63,122.6,1.80916111]
[1766591105116,0.68,122.63,122.6,9.96573945]
[1766591105312,8.15356588,122.65,122.61,1.80916111]
[1766591105634,0.68,122.64,122.61,1.80916111]
[1766591105806,0.68,122.64,122.6,8.15657834]
[1766591105807,0.68,122.64,122.62,1.80916111]
[1766591106012,0.68,122.66,122.63,1.80916111]
[1766591106331,0.68,122.66,122.6,8.15657834]
[1766591106536,0.68,122.68,122.64,1.80916111]
[1766591107044,0.68,122.68,122.64,9.96306994]
[1766591107331,8.83130527,122.68,122.65,1.80916111]
[1766591107504,0.71,122.67,122.64,1.80916111]
[1766591107905,0.71,122.67,122.64,4.6124268]
[1766591108343,0.71,122.67,122.65,4.6124268]
[1766591110320,0.71,122.68,122.65,4.6124268]
[1766591110956,0.81,122.7,122.67,4.6124268]
[1766591111254,0.81,122.7,122.66,4.6124268]
[1766591111458,0.71,122.69,122.66,4.6124268]
[1766591111751,0.71,122.69,122.65,8.15296387]
[1766591112063,0.71,122.69,122.66,4.6124268]